lending/lending_fUSD_20250808
["ID","MTS","AMOUNT","RATE_DAILY","PERIOD"]
[378031814,1754674347019,-664.58,0.00021131,2]
[378031815,1754674347029,-552.2,0.00021131,2]
[378031816,1754674347038,-795.59,0.00021131,2]
[378031817,1754674347049,-400.0,0.00021131,2]
[378031818,1754674347059,-1009.8,0.00021131,2]
[378031819,1754674347069,-400.0,0.00021131,2]
[378031820,1754674347078,-400.0,0.00021131,2]
[378031821,1754674347093,-158.64722626,0.00021131,2]
[378031822,1754674347104,-400.0,0.00021131,2]
[378031823,1754674347115,-758.91,0.00021131,2]
[378031824,1754674347124,-400.0,0.00021131,2]
[378031825,1754674347135,-400.0,0.00021131,2]
[378031826,1754674347144,-405.9,0.00021131,2]
[378031827,1754674347153,-794.09,0.00021131,2]
[378031828,1754674347164,-860.42,0.00021131,2]
[378031829,1754674347173,-497.38,0.00021131,2]
[378031830,1754674347182,-400.0,0.00021131,2]
[378031831,1754674347190,-675.98,0.00021131,2]
[378031832,1754674347209,-400.0,0.00021131,2]
[378031833,1754674347227,-1322.96,0.00021131,2]
[378031834,1754674347246,-515.94,0.00021131,2]
[378031835,1754674347255,-492.09,0.00021131,2]
[378031836,1754674347265,-1269.65,0.00021131,2]
[378031837,1754674347275,-1150.11,0.00021131,2]
[378031838,1754674347286,-729.76,0.00021131,2]
[378031839,1754674347295,-786.33,0.00021131,2]
[378031840,1754674347304,-400.0,0.00021131,2]
[378031841,1754674347314,-400.0,0.00021131,2]
[378031842,1754674347322,-400.0,0.00021131,2]
[378031843,1754674347331,-400.0,0.00021131,2]
[378031844,1754674347341,-933.94,0.00021131,2]
[378031845,1754674347350,-1309.0,0.00021131,2]
[378031846,1754674347360,-630.93,0.00021131,2]
[378031847,1754674347369,-1106.53,0.00021131,2]
[378031848,1754674347378,-1201.36,0.00021131,2]
[378031849,1754674347387,-400.0,0.00021131,2]
[378031850,1754674347397,-623.4,0.00021131,2]
[378031851,1754674347406,-1959.17,0.00021131,2]
[378031852,1754674347415,-400.0,0.00021131,2]
[378031853,1754674347424,-948.04,0.00021131,2]
[378031854,1754674347433,-1232.12,0.00021131,2]
[378031855,1754674347442,-501.95,0.00021131,2]
[378031856,1754674347452,-400.0,0.00021131,2]
[378031857,1754674347461,-1029.5,0.00021131,2]
[378031858,1754674347470,-400.0,0.00021131,2]
[378031859,1754674347480,-400.0,0.00021131,2]
[378031860,1754674347490,-1075.7,0.00021131,2]
[378031861,1754674347500,-1017.42,0.00021131,2]
[378031862,1754674347510,-400.0,0.00021131,2]
[378031863,1754674347519,-467.67,0.00021131,2]
[378031864,1754674347529,-743.32,0.00021131,2]
[378031865,1754674347539,-466.11,0.00021131,2]
[378031866,1754674347548,-496.93,0.00021131,2]
[378031867,1754674347558,-400.0,0.00021131,2]
[378031868,1754674347567,-400.0,0.00021131,2]
[378031869,1754674347577,-1260.4,0.00021131,2]
[378031870,1754674347586,-470.18,0.00021131,2]
[378031871,1754674347595,-2588.08,0.00021131,2]
[378031872,1754674347605,-400.0,0.00021131,2]
[378031873,1754674347614,-641.02,0.00021131,2]
[378031874,1754674347623,-3797.91,0.00021131,2]
[378031875,1754674347633,-400.0,0.00021131,2]
[378031876,1754674347642,-400.0,0.00021131,2]
[378031877,1754674347651,-1052.14,0.00021131,2]
[378031878,1754674347660,-889.41,0.00021131,2]
[378031879,1754674347670,-739.75,0.00021131,2]
[378031880,1754674347679,-1099.06,0.00021131,2]
[378031881,1754674347688,-1630.68,0.00021131,2]
[378031882,1754674347699,-3365.51,0.00021131,2]
[378031883,1754674347710,-1750.29,0.00021131,2]
[378031884,1754674347719,-2289.35,0.00021131,2]
[378031885,1754674347729,-1124.14,0.00021131,2]
[378031886,1754674347740,-400.0,0.00021131,2]
[378031887,1754674347749,-838.76,0.00021131,2]
[378031888,1754674347759,-1564.85,0.00021131,2]
[378031889,1754674347768,-752.21,0.00021131,2]
[378031890,1754674347778,-1259.02,0.00021131,2]
[378031891,1754674347788,-1360.45,0.00021131,2]
[378031892,1754674347797,-447.46,0.00021131,2]
[378031893,1754674347807,-400.0,0.00021131,2]
[378031894,1754674347817,-400.0,0.00021131,2]
[378031895,1754674347827,-457.11,0.00021131,2]
[378031896,1754674347839,-907.31,0.00021131,2]
[378031897,1754674347854,-635.96,0.00021131,2]
[378031898,1754674347865,-516.43,0.00021131,2]
[378031899,1754674347875,-2511.44,0.00021131,2]
[378031900,1754674347885,-841.87,0.00021131,2]
[378031901,1754674347894,-400.0,0.00021131,2]
[378031902,1754674347904,-909.41,0.00021131,2]
[378031903,1754674347913,-400.0,0.00021131,2]
[378031904,1754674347923,-633.54,0.00021131,2]
[378031905,1754674347932,-1757.88,0.00021131,2]
[378031906,1754674347942,-3698.85,0.00021131,2]
[378031907,1754674347952,-400.0,0.00021131,2]
[378031908,1754674347960,-1660.57,0.00021131,2]
[378031909,1754674347970,-748.76,0.00021131,2]
[378031910,1754674347980,-466.12,0.00021131,2]
[378031911,1754674348002,-724.03,0.00021131,2]
[378031912,1754674348022,-2130.8,0.00021131,2]
[378031913,1754674348031,-420.45,0.00021131,2]
[378031914,1754674348041,-1000.99,0.00021131,2]
[378031915,1754674348050,-956.66,0.00021131,2]
[378031916,1754674348060,-825.21,0.00021131,2]
[378031917,1754674348070,-1301.7,0.00021131,2]
[378031918,1754674348079,-400.0,0.00021131,2]
[378031919,1754674348092,-1094.31,0.00021131,2]
[378031920,1754674348101,-498.58,0.00021131,2]
[378031921,1754674348111,-815.06,0.00021131,2]
[378031922,1754674348121,-1195.76,0.00021131,2]
[378031923,1754674348131,-442.27,0.00021131,2]
[378031924,1754674348140,-552.06,0.00021131,2]
[378031925,1754674348151,-484.27,0.00021131,2]
[378031926,1754674348160,-624.41,0.00021131,2]
[378031927,1754674348170,-522.06491355,0.00021131,2]
[378031928,1754674348181,-2556.32,0.00021131,2]
[378031929,1754674348190,-844.68,0.00021131,2]
[378031930,1754674348200,-440.75,0.00021131,2]
[378031931,1754674348210,-1182.8,0.00021131,2]
[378031932,1754674348219,-1893.37,0.00021131,2]
[378031933,1754674348230,-400.0,0.00021131,2]
[378031934,1754674348242,-520.64,0.00021131,2]
[378031935,1754674348251,-524.52,0.00021131,2]
[378031936,1754674348261,-3101.03,0.00021131,2]
[378031937,1754674348270,-616.08,0.00021131,2]
[378031938,1754674348280,-732.88,0.00021131,2]
[378031939,1754674348289,-856.38,0.00021131,2]
[378031940,1754674348299,-4832.78,0.00021131,2]
[378031941,1754674348309,-627.0,0.00021131,2]
[378031942,1754674348318,-952.86,0.00021131,2]
[378031943,1754674348328,-400.0,0.00021131,2]
[378031944,1754674348337,-480.32,0.00021131,2]
[378031945,1754674348346,-1841.68,0.00021131,2]
[378031946,1754674348356,-3627.65,0.00021131,2]
[378031947,1754674348368,-400.0,0.00021131,2]
[378031948,1754674348378,-803.51,0.00021131,2]
[378031949,1754674348388,-429.23,0.00021131,2]
[378031950,1754674348398,-781.89,0.00021131,2]
[378031951,1754674348409,-467.89,0.00021131,2]
[378031952,1754674348420,-1163.42,0.00021131,2]
[378031953,1754674348431,-1771.62,0.00021131,2]
[378031954,1754674348442,-585.49,0.00021131,2]
[378031955,1754674348453,-784.71,0.00021131,2]
[378031956,1754674348463,-842.16,0.00021131,2]
[378031957,1754674348473,-971.72,0.00021131,2]
[378031958,1754674348482,-437.29,0.00021131,2]
[378031959,1754674348492,-498.13,0.00021131,2]
[378031960,1754674348501,-1364.1,0.00021131,2]
[378031961,1754674348511,-199.94686224,0.00021131,2]
[378031962,1754674348521,-4194.96,0.00021131,2]
[378031963,1754674348533,-3720.86,0.00021131,2]
[378031964,1754674348544,-482.49,0.00021131,2]
[378031965,1754674348554,-932.41,0.00021131,2]
[378031966,1754674348566,-400.0,0.00021131,2]
[378031967,1754674348578,-467.73,0.00021131,2]
[378031968,1754674348589,-694.04,0.00021131,2]
[378031969,1754674348600,-785.65,0.00021131,2]
[378031970,1754674348609,-1073.17,0.00021131,2]
[378031971,1754674348621,-2564.99,0.00021131,2]
[378031972,1754674348631,-1271.83,0.00021131,2]
[378031973,1754674348641,-400.0,0.00021131,2]
[378031974,1754674348650,-501.58,0.00021131,2]
[378031975,1754674348660,-561.21,0.00021131,2]
[378031976,1754674348669,-695.37,0.00021131,2]
[378031977,1754674348678,-1291.31,0.00021131,2]
[378031978,1754674348688,-400.0,0.00021131,2]
[378031979,1754674348698,-1430.86,0.00021131,2]
[378031980,1754674348708,-3151.61,0.00021131,2]
[378031981,1754674348718,-836.4,0.00021131,2]
[378031982,1754674348727,-421.02,0.00021131,2]
[378031983,1754674348739,-850.6,0.00021131,2]
[378031984,1754674348750,-2829.87,0.00021131,2]
[378031985,1754674348759,-400.0,0.00021131,2]
[378031986,1754674348769,-3147.45,0.00021131,2]
[378031987,1754674348780,-2412.01,0.00021131,2]
[378031988,1754674348790,-3174.96,0.00021131,2]
[378031989,1754674348799,-1344.29,0.00021131,2]
[378031990,1754674348809,-234.54,0.00021131,2]
[378031991,1754674348818,-475.15,0.00021132,2]
[378031992,1754674348828,-400.0,0.00021132,2]
[378031993,1754674348838,-400.0,0.00021132,2]
[378031994,1754674348847,-400.0,0.00021132,2]
[378031995,1754674348857,-400.0,0.00021132,2]
[378031996,1754674348876,-400.0,0.00021132,2]
[378031997,1754674348887,-400.0,0.00021132,2]
[378031998,1754674348896,-400.0,0.00021132,2]
[378031999,1754674348906,-400.0,0.00021132,2]
[378032000,1754674348915,-400.0,0.00021132,2]
[378032001,1754674348925,-300.0,0.00021132,2]
[378032002,1754674348935,-613.14,0.00021132,2]
[378032003,1754674348944,-400.0,0.00021132,2]
[378032004,1754674348954,-487.53,0.00021132,2]
[378032005,1754674348964,-400.0,0.00021132,2]
[378032006,1754674348974,-470.26,0.00021132,2]
[378032007,1754674348985,-400.0,0.00021132,2]
[378032008,1754674348998,-400.0,0.00021132,2]
[378032009,1754674349007,-400.0,0.00021132,2]
[378032010,1754674349017,-400.0,0.00021132,2]
[378032011,1754674349027,-400.0,0.00021132,2]
[378032012,1754674349037,-400.0,0.00021132,2]
[378032013,1754674349047,-462.27,0.00021132,2]
[378032014,1754674349059,-580.1,0.00021132,2]
[378032015,1754674349070,-400.0,0.00021132,2]
[378032016,1754674349080,-400.0,0.00021132,2]
[378032017,1754674349095,-400.0,0.00021132,2]
[378032018,1754674349104,-400.0,0.00021132,2]
[378032019,1754674349114,-479.7,0.00021132,2]
[378032020,1754674349124,-568.03,0.00021132,2]
[378032021,1754674349134,-400.0,0.00021132,2]
[378032022,1754674349144,-400.0,0.00021132,2]
[378032023,1754674349154,-421.44,0.00021132,2]
[378032024,1754674349166,-418.64,0.00021132,2]
[378032025,1754674349176,-504.49,0.00021132,2]
[378032026,1754674349186,-700.9,0.00021132,2]
[378032027,1754674349196,-520.77,0.00021132,2]
[378032028,1754674349206,-400.0,0.00021132,2]
[378032029,1754674349215,-400.0,0.00021132,2]
[378032030,1754674349227,-400.0,0.00021132,2]
[378032031,1754674349240,-400.0,0.00021132,2]
[378032032,1754674349249,-400.0,0.00021132,2]
[378032033,1754674349259,-400.0,0.00021132,2]
[378032034,1754674349269,-400.0,0.00021132,2]
[378032035,1754674349278,-400.0,0.00021132,2]
[378032036,1754674349288,-400.0,0.00021132,2]
[378032037,1754674349297,-484.85,0.00021132,2]
[378032038,1754674349307,-476.19184592,0.00021132,2]
[378032039,1754674349317,-432.17,0.00021132,2]
[378032040,1754674349326,-400.0,0.00021132,2]
[378032041,1754674349336,-1178.17,0.00021132,2]
[378032042,1754674349345,-456.42,0.00021132,2]
[378032043,1754674349355,-400.0,0.00021132,2]
[378032044,1754674349365,-400.0,0.00021132,2]
[378032045,1754674349375,-534.77,0.00021132,2]
[378032046,1754674349386,-400.0,0.00021132,2]
[378032047,1754674349396,-400.0,0.00021132,2]
[378032048,1754674349406,-435.31,0.00021132,2]
[378032049,1754674349416,-4517.84,0.00021132,2]
[378032050,1754674349426,-400.0,0.00021132,2]
[378032051,1754674349436,-477.72,0.00021132,2]
[378032052,1754674349446,-400.0,0.00021132,2]
[378032053,1754674349456,-400.0,0.00021132,2]
[378032054,1754674349467,-4062.08,0.00021132,2]
[378032055,1754674349477,-400.0,0.00021132,2]
[378032056,1754674349488,-400.0,0.00021132,2]
[378032057,1754674349498,-400.0,0.00021132,2]
[378032058,1754674349507,-735.5,0.00021132,2]
[378032059,1754674349517,-1368.24,0.00021132,2]
[378032060,1754674349527,-400.0,0.00021132,2]
[378032061,1754674349537,-400.0,0.00021132,2]
[378032062,1754674349547,-400.0,0.00021132,2]
[378032063,1754674349558,-400.0,0.00021132,2]
[378032064,1754674349567,-400.0,0.00021132,2]
[378032065,1754674349578,-400.0,0.00021132,2]
[378032066,1754674349588,-1187.72,0.00021132,2]
[378032067,1754674349598,-400.0,0.00021132,2]
[378032068,1754674349608,-450.77,0.00021132,2]
[378032069,1754674349618,-400.0,0.00021132,2]
[378032070,1754674349628,-400.0,0.00021132,2]
[378032071,1754674349637,-400.0,0.00021132,2]
[378032072,1754674349647,-1471.83,0.00021132,2]
[378032073,1754674349658,-557.2,0.00021132,2]
[378032074,1754674349667,-400.0,0.00021132,2]
[378032075,1754674349678,-358.65419479,0.00021132,2]
[378032076,1754674349689,-436.5,0.00021132,2]
[378032077,1754674349699,-439.47,0.00021132,2]
[378032078,1754674349709,-1359.72,0.00021132,2]
[378032079,1754674349719,-400.0,0.00021132,2]
[378032080,1754674349729,-1098.38,0.00021132,2]
[378032081,1754674349740,-400.0,0.00021132,2]
[378032082,1754674349751,-400.0,0.00021132,2]
[378032083,1754674349761,-505.49,0.00021132,2]
[378032084,1754674349771,-493.47,0.00021132,2]
[378032085,1754674349782,-400.0,0.00021132,2]
[378032086,1754674349794,-400.0,0.00021132,2]
[378032087,1754674349807,-412.55,0.00021132,2]
[378032088,1754674349817,-496.49,0.00021132,2]
[378032089,1754674349835,-808.39,0.00021132,2]
[378032090,1754674349848,-400.0,0.00021132,2]
[378032091,1754674349858,-400.0,0.00021132,2]
[378032092,1754674349869,-400.0,0.00021132,2]
[378032093,1754674349879,-400.0,0.00021132,2]
[378032094,1754674349890,-1155.05,0.00021132,2]
[378032095,1754674349901,-485.06,0.00021132,2]
[378032096,1754674349911,-521.07,0.00021132,2]
[378032097,1754674349922,-643.05,0.00021132,2]
[378032098,1754674349932,-400.0,0.00021132,2]
[378032099,1754674349942,-489.19,0.00021132,2]
[378032100,1754674349952,-760.76,0.00021132,2]
[378032101,1754674349963,-576.62,0.00021132,2]
[378032102,1754674349974,-437.71,0.00021132,2]
[378032103,1754674349986,-704.59,0.00021132,2]
[378032104,1754674349996,-919.49,0.00021132,2]
[378032105,1754674350007,-1259.56,0.00021132,2]
[378032106,1754674350017,-508.27,0.00021132,2]
[378032107,1754674350027,-400.0,0.00021132,2]
[378032108,1754674350038,-400.0,0.00021132,2]
[378032109,1754674350048,-1124.56,0.00021132,2]
[378032110,1754674350059,-2507.35,0.00021132,2]
[378032111,1754674350069,-424.0,0.00021132,2]
[378032112,1754674350081,-400.0,0.00021132,2]
[378032113,1754674350094,-1219.23,0.00021132,2]
[378032114,1754674350104,-400.0,0.00021132,2]
[378032115,1754674350114,-400.0,0.00021132,2]
[378032116,1754674350124,-738.95,0.00021132,2]
[378032117,1754674350135,-739.75,0.00021132,2]
[378032118,1754674350145,-705.62,0.00021132,2]
[378032119,1754674350156,-429.41,0.00021132,2]
[378032120,1754674350167,-408.09,0.00021132,2]
[378032121,1754674350178,-22590.06,0.00021132,2]
[378032122,1754674350188,-400.0,0.00021132,2]
[378032123,1754674350198,-400.0,0.00021132,2]
[378032124,1754674350209,-444.79,0.00021132,2]
[378032125,1754674350221,-400.0,0.00021132,2]
[378032126,1754674350233,-1009.83,0.00021132,2]
[378032127,1754674350246,-400.0,0.00021132,2]
[378032128,1754674350257,-612.57,0.00021132,2]
[378032129,1754674350269,-400.0,0.00021132,2]
[378032130,1754674350279,-412.85,0.00021132,2]
[378032131,1754674350290,-1019.52,0.00021132,2]
[378032132,1754674350302,-400.0,0.00021132,2]
[378032133,1754674350316,-400.0,0.00021132,2]
[378032134,1754674350330,-602.24,0.00021132,2]
[378032135,1754674350343,-339.26028959,0.00021132,2]
[378032136,1754674350360,-400.0,0.00021132,2]
[378032137,1754674350385,-702.83,0.00021132,2]
[378032138,1754674350398,-400.0,0.00021132,2]
[378032139,1754674350663,-400.0,0.00021132,2]
[378032140,1754674350673,-401.02,0.00021132,2]
[378032141,1754674350684,-480.03,0.00021132,2]
[378032142,1754674350693,-414.37,0.00021132,2]
[378032143,1754674350703,-400.0,0.00021132,2]
[378032144,1754674350713,-420.84,0.00021132,2]
[378032145,1754674350722,-469.13,0.00021132,2]
[378032146,1754674350731,-1156.43,0.00021132,2]
[378032147,1754674350741,-1173.27,0.00021132,2]
[378032148,1754674350751,-414.41,0.00021132,2]
[378032149,1754674350760,-2082.95,0.00021132,2]
[378032150,1754674350770,-400.0,0.00021132,2]
[378032151,1754674350780,-1355.51,0.00021132,2]
[378032152,1754674350790,-400.0,0.00021132,2]
[378032153,1754674350800,-412.20632852,0.00021132,2]
[378032154,1754674350809,-712.97,0.00021132,2]
[378032155,1754674350819,-400.0,0.00021132,2]
[378032156,1754674350830,-1433.19,0.00021132,2]
[378032157,1754674350839,-400.0,0.00021132,2]
[378032158,1754674350849,-1279.98,0.00021132,2]
[378032159,1754674350858,-400.0,0.00021132,2]
[378032160,1754674350868,-2544.43,0.00021132,2]
[378032161,1754674350878,-3304.91,0.00021132,2]
[378032162,1754674350887,-545.33,0.00021132,2]
[378032163,1754674350897,-1361.67,0.00021132,2]
[378032164,1754674350907,-680.15,0.00021132,2]
[378032165,1754674350917,-529.67347326,0.00021132,2]
[378032166,1754674350927,-446.42,0.00021132,2]
[378032167,1754674350936,-1015.86,0.00021132,2]
[378032168,1754674350946,-400.0,0.00021132,2]
[378032169,1754674350956,-400.0,0.00021132,2]
[378032170,1754674350965,-400.0,0.00021132,2]
[378032171,1754674350975,-472.84,0.00021132,2]
[378032172,1754674350985,-6584.79,0.00021132,2]
[378032173,1754674350995,-400.0,0.00021132,2]
[378032174,1754674351006,-645.58,0.00021132,2]
[378032175,1754674351015,-400.0,0.00021132,2]
[378032176,1754674351025,-434.44,0.00021132,2]
[378032177,1754674351035,-510.44,0.00021132,2]
[378032178,1754674351044,-400.0,0.00021132,2]
[378032179,1754674351054,-400.0,0.00021132,2]
[378032180,1754674351063,-400.0,0.00021132,2]
[378032181,1754674351073,-637.96,0.00021132,2]
[378032182,1754674351082,-400.0,0.00021132,2]
[378032183,1754674351098,-4087.5,0.00021132,2]
[378032184,1754674351108,-400.0,0.00021132,2]
[378032185,1754674351122,-789.22881525,0.00021132,2]
[378032186,1754674351131,-1167.59,0.00021132,2]
[378032187,1754674351142,-839.14,0.00021132,2]
[378032188,1754674351151,-423.67,0.00021132,2]
[378032189,1754674351160,-400.0,0.00021132,2]
[378032190,1754674351170,-1923.32,0.00021132,2]
[378032191,1754674351180,-2534.72,0.00021132,2]
[378032192,1754674351190,-3221.54,0.00021132,2]
[378032193,1754674351199,-400.0,0.00021132,2]
[378032194,1754674351209,-2686.59,0.00021132,2]
[378032195,1754674351218,-2767.77,0.00021132,2]
[378032196,1754674351229,-4079.49,0.00021132,2]
[378032197,1754674351238,-1045.66,0.00021132,2]
[378032198,1754674351248,-3290.29,0.00021133,2]
[378032199,1754674351258,-2369.18,0.00021133,2]
[378032200,1754674351269,-13166.57,0.00021133,2]
[378032201,1754674351279,-1590.7,0.00021133,2]
[378032202,1754674351288,-1258.97,0.00021133,2]
[378032203,1754674351298,-2052.34,0.00021133,2]
[378032204,1754674351307,-508.01,0.00021133,2]
[378032205,1754674351317,-5234.06,0.00021133,2]
[378032206,1754674351327,-400.0,0.00021133,2]
[378032207,1754674351336,-2455.21,0.00021133,2]
[378032208,1754674351348,-1846.96,0.00021133,2]
[378032209,1754674351358,-1243.92,0.00021133,2]
[378032210,1754674351367,-1638.01,0.00021133,2]
[378032211,1754674351377,-1639.76,0.00021133,2]
[378032212,1754674351386,-1386.66,0.00021133,2]
[378032213,1754674351396,-2763.15,0.00021133,2]
[378032214,1754674351405,-3536.52,0.00021133,2]
[378032215,1754674351415,-2140.87,0.00021133,2]
[378032216,1754674351425,-1711.31,0.00021133,2]
[378032217,1754674351434,-449.95,0.00021133,2]
[378032218,1754674351444,-150.0,0.00021153,5]
[378032219,1754674351453,-1884.6,0.00021162,2]
[378032220,1754674351463,-2784.91,0.0002122,2]
[378032221,1754674351474,-150.0,0.0002122,2]
[378032222,1754674351484,-1313.12,0.00021273,2]
[378032223,1754674351495,-40000.0,0.000213,5]
[378032224,1754674351504,-315.37,0.00021319,2]
[378032225,1754674351514,-2510.95,0.0002133,2]
[378032226,1754674351524,-5000.0,0.00021334,2]
[378032227,1754674351533,-5000.0,0.00021337,2]
[378032228,1754674351543,-2422.42,0.00021344,2]
[378032229,1754674351552,-5000.0,0.00021356,2]
[378032230,1754674351561,-17359.9,0.00021363,2]
[378032231,1754674351571,-5000.0,0.00021366,2]
[378032232,1754674351582,-5219.36,0.0002137,2]
[378032233,1754674351591,-1100.0,0.0002137,2]
[378032234,1754674351603,-500.0,0.0002137,2]
[378032235,1754674351613,-174.61919141,0.0002137,2]
[378032236,1754674351624,-400.0,0.00021404,2]
[378032237,1754674351634,-400.0,0.00021404,2]
[378032238,1754674351643,-661.11,0.00021404,2]
[378032239,1754674351653,-2954.91,0.00021404,2]
[378032240,1754674351663,-2275.54,0.00021404,2]
[378032241,1754674351672,-946.48,0.00021404,2]
[378032242,1754674351682,-7691.76,0.00021404,2]
[378032243,1754674351691,-848.32,0.00021404,2]
[378032244,1754674351701,-1032.75,0.00021404,2]
[378032245,1754674351710,-600.19,0.00021404,2]
[378032246,1754674351720,-1855.93,0.00021404,2]
[378032247,1754674351729,-675.93,0.00021404,2]
[378032248,1754674351740,-5291.16,0.00021404,2]
[378032249,1754674351750,-3569.89,0.00021404,2]
[378032250,1754674351759,-2731.24,0.00021404,2]
[378032251,1754674351768,-643.22,0.00021404,2]
[378032252,1754674351777,-185.9896414,0.00021404,2]
[378032253,1754674351787,-1935.23,0.00021404,2]
[378032254,1754674351796,-821.85,0.00021404,2]
[378032255,1754674351806,-774.94,0.00021404,2]
[378032256,1754674351815,-447.97,0.00021404,2]
[378032257,1754674351825,-538.44,0.00021404,2]
[378032258,1754674351834,-947.0,0.00021405,2]
[378032259,1754674351843,-1798.0,0.00021405,2]
[378032260,1754674351853,-977.0,0.00021405,2]
[378032261,1754674351862,-156.799685,0.00021405,2]
[378032262,1754674351871,-183.659282,0.00021405,2]
[378032263,1754674351881,-1000.0,0.00021405,2]
[378032264,1754674351890,-2162.28,0.00021405,2]
[378032265,1754674351899,-788.52,0.00021405,2]
[378032266,1754674351909,-606.57,0.00021405,2]
[378032267,1754674351918,-691.64,0.00021405,2]
[378032268,1754674351928,-504.23,0.00021405,2]
[378032269,1754674351938,-711.68,0.00021405,2]
[378032270,1754674351947,-672.8,0.00021405,2]
[378032271,1754674351956,-767.72,0.00021405,2]
[378032272,1754674351965,-411.37,0.00021405,2]
[378032273,1754674351974,-692.39,0.00021405,2]
[378032274,1754674351983,-460.18,0.00021405,2]
[378032275,1754674351994,-680.33,0.00021405,2]
[378032276,1754674352003,-418.64,0.00021405,2]
[378032277,1754674352012,-400.0,0.00021405,2]
[378032278,1754674352021,-1053.65,0.00021405,2]
[378032279,1754674352031,-591.98,0.00021405,2]
[378032280,1754674352040,-400.0,0.00021405,2]
[378032281,1754674352049,-400.0,0.00021405,2]
[378032282,1754674352058,-400.0,0.00021405,2]
[378032283,1754674352067,-820.42,0.00021405,2]
[378032284,1754674352076,-540.05,0.00021405,2]
[378032285,1754674352087,-444.75,0.00021405,2]
[378032286,1754674352098,-400.0,0.00021405,2]
[378032287,1754674352107,-475.1,0.00021405,2]
[378032288,1754674352116,-1065.2,0.00021405,2]
[378032289,1754674352125,-663.95,0.00021405,2]
[378032290,1754674352134,-664.58,0.00021405,2]
[378032291,1754674352143,-552.2,0.00021405,2]
[378032292,1754674352153,-795.59,0.00021405,2]
[378032293,1754674352162,-400.0,0.00021405,2]
[378032294,1754674352171,-1009.8,0.00021405,2]
[378032295,1754674352180,-400.0,0.00021405,2]
[378032296,1754674352189,-366.11578069,0.00021405,2]
[378032297,1754674352199,-400.0,0.00021405,2]
[378032298,1754674352208,-758.91,0.00021405,2]
[378032299,1754674352218,-400.0,0.00021405,2]
[378032300,1754674352227,-400.0,0.00021405,2]
[378032301,1754674352237,-405.9,0.00021405,2]
[378032302,1754674352246,-794.09,0.00021405,2]
[378032303,1754674352255,-860.42,0.00021405,2]
[378032304,1754674352264,-497.38,0.00021405,2]
[378032305,1754674352273,-400.0,0.00021405,2]
[378032306,1754674352282,-675.98,0.00021405,2]
[378032307,1754674352292,-400.0,0.00021405,2]
[378032308,1754674352301,-1322.96,0.00021405,2]
[378032309,1754674352311,-515.94,0.00021405,2]
[378032310,1754674352320,-492.09,0.00021405,2]
[378032311,1754674352329,-1269.65,0.00021405,2]
[378032312,1754674352339,-1150.11,0.00021405,2]
[378032313,1754674352348,-729.76,0.00021405,2]